bitfinex/quotes_SOLUSD_20220226
["timestamp","ask_amount","ask_price","bid_price","bid_amount"]
[1645860359206,23.9042,91.461,91.389,2.57569899]
[1645860359402,3.67514617,91.463,91.389,111.57569899]
[1645860359605,3.67514617,91.463,91.382,22.6593]
[1645860359606,0.62679448,91.474,91.391,109.0]
[1645860360002,0.62679448,91.474,91.393,109.0]
[1645860360205,0.62679448,91.474,91.394,3.10850115]
[1645860360407,18.74469346,91.473,91.395,109.0]
[1645860360604,3.86189777,91.472,91.396,45.13430693]
[1645860360806,3.86189777,91.472,91.397,2.44734204]
[1645860361206,3.86189777,91.472,91.398,14.76118787]
[1645860361406,3.86189777,91.472,91.399,3.04122709]
[1645860361909,3.86189777,91.472,91.401,2.40422126]
[1645860362306,3.86189777,91.472,91.402,14.76118787]
[1645860362506,3.86189777,91.472,91.403,2.88900411]
[1645860362908,3.86189777,91.472,91.404,14.74385454]
[1645860363308,3.86189777,91.472,91.404,17.35096994]
[1645860363508,3.86189777,91.472,91.405,2.5153568]
[1645860363708,3.86189777,91.472,91.397,2.95747004]
[1645860364610,15.89,91.47,91.397,2.95747004]
[1645860364810,17.74778529,91.47,91.371,21.26105976]
[1645860365009,92.4498,91.469,91.365,24.8357]
[1645860365213,65.53,91.465,91.366,2.27107301]
[1645860365409,65.53,91.463,91.366,2.27107301]
[1645860365611,0.49056135,91.449,91.37,50.96712495]
[1645860365810,25.33656135,91.449,91.37,50.96712495]
[1645860366011,18.75157534,91.448,91.37,50.96712495]
[1645860366213,65.53,91.447,91.309,11.43488497]
[1645860366511,18.75157534,91.446,91.343,3.07572219]
[1645860366917,18.75157534,91.447,91.343,3.07572219]
[1645860367113,18.75157534,91.447,91.345,3.0489034]
[1645860367317,18.75157534,91.447,91.346,2.2577423]
[1645860371323,18.75157534,91.447,91.347,17.82860084]
[1645860371520,18.75157534,91.447,91.348,2.55086535]
[1645860371922,18.75157534,91.447,91.349,22.34889816]
[1645860372123,18.75157534,91.447,91.35,2.78521468]
[1645860372324,23.9366,91.448,91.35,51.71863743]
[1645860372621,23.9366,91.448,91.351,49.49335875]
[1645860372821,23.9366,91.448,91.352,2.26397678]
[1645860373021,23.9366,91.448,91.352,29.53411552]
[1645860373222,23.9366,91.448,91.353,29.99519584]
[1645860373422,23.9366,91.448,91.354,22.5433]
[1645860373622,23.9366,91.448,91.355,2.89100895]
[1645860373821,23.9366,91.448,91.355,29.31133353]
[1645860374021,23.9366,91.448,91.356,9.04085602]
[1645860374222,23.9366,91.448,91.356,26.67032458]
[1645860374422,23.9366,91.448,91.357,20.38371997]
[1645860374623,23.9366,91.448,91.357,17.62946856]
[1645860374823,23.9366,91.448,91.359,52.74763806]
[1645860375325,23.9366,91.448,91.36,2.70434008]
[1645860375724,23.9366,91.448,91.361,17.62946856]
[1645860375925,23.9366,91.448,91.362,2.80272366]
[1645860376440,23.9366,91.448,91.364,2.94019092]
[1645860376639,23.9366,91.448,91.366,2.82440361]
[1645860377242,23.9366,91.448,91.367,17.62946856]
[1645860377440,23.9366,91.448,91.368,2.97418775]
[1645860378039,23.9366,91.448,91.37,2.8220869]
[1645860378739,23.9366,91.448,91.373,57.32692458]
[1645860378939,23.9366,91.448,91.374,2.5188302]
[1645860379143,23.9366,91.448,91.374,20.14829876]
[1645860379340,23.9366,91.448,91.375,2.7094295]
[1645860379742,18.76754241,91.447,91.375,2.7094295]
[1645860380941,18.76754241,91.447,91.376,17.62946856]
[1645860381344,18.76754241,91.447,91.375,2.7094295]
[1645860381540,18.76754241,91.447,91.376,17.62946856]
[1645860381940,18.76754241,91.447,91.375,2.7094295]
[1645860383243,23.9366,91.448,91.376,17.62946856]
[1645860383443,23.9366,91.448,91.375,2.7094295]
[1645860383844,18.7646539,91.447,91.376,17.62946856]
[1645860384245,23.9366,91.448,91.375,2.7094295]
[1645860384443,23.9366,91.448,91.376,17.62946856]
[1645860384845,23.9366,91.448,91.377,2.6300497]
[1645860385246,23.9366,91.448,91.379,3.01346205]
[1645860385746,23.9366,91.448,91.38,17.62946856]
[1645860385949,23.9366,91.448,91.38,28.36205484]
[1645860386151,23.9366,91.448,91.381,2.87502672]
[1645860386352,0.62679448,91.474,91.381,13.607613]
[1645860386651,0.62679448,91.474,91.383,2.52591089]
[1645860386853,3.69898241,91.473,91.383,2.52591089]
[1645860387054,0.62679448,91.474,91.385,109.0]
[1645860387253,0.62679448,91.474,91.386,2.84216479]
[1645860387453,0.62679448,91.474,91.387,109.0]
[1645860387654,0.62679448,91.474,91.388,2.59141788]
[1645860387952,0.62679448,91.474,91.391,2.7076225]
[1645860388354,0.62679448,91.474,91.393,109.0]
[1645860388554,0.62679448,91.474,91.394,2.96604485]
[1645860388756,0.62679448,91.474,91.395,109.0]
[1645860388954,0.62679448,91.474,91.396,2.33655774]
[1645860389156,0.62679448,91.474,91.396,24.60094211]
[1645860389357,0.62679448,91.474,91.401,109.0]
[1645860389557,0.62679448,91.474,91.402,0.25]
[1645860389755,0.62679448,91.474,91.403,109.0]
[1645860389956,0.62679448,91.474,91.404,2.88185466]
[1645860390159,0.62679448,91.474,91.405,109.0]
[1645860390358,0.62679448,91.474,91.406,63.44949336]
[1645860390557,0.62679448,91.474,91.406,105.64083752]
[1645860390757,0.62679448,91.474,91.407,3.05414889]
[1645860390958,0.62679448,91.474,91.42,16.4034]
[1645860391159,0.62679448,91.474,91.422,51.48068464]
[1645860391357,0.62679448,91.474,91.422,48.84213579]
[1645860391559,0.62679448,91.474,91.423,2.69868706]
[1645860391959,0.62679448,91.474,91.423,26.60728706]
[1645860392161,0.62679448,91.474,91.424,2.50849911]
[1645860398067,4.374,91.518,91.426,109.0]
[1645860398261,23.2067,91.549,91.427,0.25]
[1645860398461,23.2067,91.549,91.431,109.0]
[1645860398663,23.2067,91.549,91.432,2.51763808]
[1645860398866,23.2067,91.549,91.433,109.0]
[1645860399061,3.79860481,91.548,91.435,109.0]
[1645860399264,23.2067,91.549,91.437,109.0]
[1645860399464,23.2067,91.549,91.451,109.0]
[1645860399664,23.2067,91.549,91.452,2.41536778]
[1645860399864,23.2067,91.549,91.454,2.6192967]
[1645860400267,23.2067,91.549,91.454,111.6192967]
[1645860400469,23.5201,91.568,91.47,16.3938]
[1645860400670,23.5201,91.568,91.471,59.49874517]
[1645860400867,23.5201,91.568,91.472,2.8534038]
[1645860401071,23.5201,91.568,91.472,44.48936592]
[1645860401268,23.5201,91.568,91.474,2.93143501]
[1645860401668,23.5201,91.568,91.475,17.37225972]
[1645860401868,23.5201,91.568,91.476,2.5276336]
[1645860402290,4.25283021,91.573,91.476,153.16359572]
[1645860402491,4.25283021,91.573,91.477,2.83510379]
[1645860403894,15.89,91.57,91.477,2.83510379]
[1645860404095,1.51772309,91.569,91.477,2.83510379]
[1645860404296,109.0,91.568,91.477,2.83510379]
[1645860404494,109.0,91.568,91.471,56.52988886]
[1645860404495,65.53,91.565,91.455,24.478]
[1645860404694,109.0,91.566,91.406,77.2386]
[1645860404695,66.9363596,91.549,91.438,2.27147032]
[1645860404893,1.63009663,91.546,91.438,2.27147032]
[1645860405094,4.371,91.545,91.438,2.27147032]
[1645860405497,4.371,91.545,91.439,45.29701425]
[1645860405498,0.72642339,91.544,91.439,45.29701425]
[1645860405794,3.96044919,91.529,91.44,2.88822442]
[1645860405994,15.89,91.52,91.44,2.88822442]
[1645860413603,15.89,91.52,91.442,2.99765365]
[1645860413801,0.68548052,91.449,91.442,2.99765365]
[1645860414103,0.68548052,91.449,91.444,2.33150229]
[1645860414501,0.68548052,91.449,91.444,18.08287149]
[1645860414702,0.68548052,91.449,91.445,2.56081438]
[1645860415704,0.68548052,91.449,91.446,2.7616341]
[1645860416205,0.68548052,91.449,91.447,23.6917024]
[1645860416405,0.68548052,91.449,91.448,2.48490796]
[1645860416803,24.5168,91.528,91.45,2.27557026]
[1645860417006,15.89,91.52,91.45,2.27557026]
[1645860417203,15.89,91.52,91.451,23.6917024]
[1645860417404,5.53517448,91.519,91.452,2.61552251]
[1645860417603,5.53517448,91.519,91.453,50.29392815]
[1645860417804,5.53517448,91.519,91.453,73.98528388]
[1645860418506,15.89,91.52,91.453,73.98528388]
[1645860418707,24.5168,91.528,91.455,3.04193368]
[1645860419105,24.5168,91.528,91.456,23.69135573]
[1645860419505,24.5168,91.528,91.457,2.76431279]
[1645860419704,24.5168,91.528,91.458,2.95800535]
[1645860419907,24.5168,91.528,91.458,39.43232493]
[1645860420206,24.5168,91.528,91.459,26.14211038]
[1645860420408,24.5168,91.528,91.46,2.3215295]
[1645860420610,32.2908,91.55,91.46,41.75385443]
[1645860420807,32.2908,91.55,91.461,2.33589041]
[1645860421006,4.06875413,91.549,91.462,2.70248315]
[1645860421212,4.06875413,91.549,91.462,23.69135573]
[1645860421409,109.0,91.541,91.408,4.371]
[1645860421607,1.75409061,91.518,91.393,2.87858815]
[1645860421807,15.89,91.51,91.393,2.87858815]
[1645860422008,1.51529862,91.509,91.393,2.87858815]
[1645860422209,1.59597999,91.508,91.394,45.15468446]
[1645860422408,1.59597999,91.508,91.396,2.35560825]
[1645860422608,15.89,91.51,91.401,111.41539686]
[1645860422810,4.373,91.549,91.402,4.373]
[1645860423009,15.89,91.56,91.407,109.0]
[1645860423210,15.89,91.56,91.421,109.0]
[1645860423410,15.89,91.56,91.423,109.0]
[1645860423610,5.31625687,91.559,91.426,2.86816304]
[1645860423813,16.3999,91.55,91.427,4.621]
[1645860424009,0.34847725,91.539,91.427,4.621]
[1645860424211,0.34847725,91.539,91.428,2.86292427]
[1645860424509,2.08934954,91.539,91.429,4.372]
[1645860424712,4.372,91.538,91.428,2.86292427]
[1645860424908,4.372,91.538,91.43,2.86292427]
[1645860425308,4.372,91.538,91.426,2.86816304]
[1645860425309,174.53,91.536,91.426,2.86816304]
[1645860425512,16.4076,91.51,91.426,2.86816304]
[1645860425809,16.4076,91.51,91.37,15.89]
[1645860425810,66.88366291,91.499,91.399,3.00616756]
[1645860426009,67.22791962,91.497,91.4,2.38836342]
[1645860426208,1.79239156,91.496,91.4,2.38836342]
[1645860426810,5.20123175,91.495,91.402,3.04630715]
[1645860427612,16.4118,91.49,91.402,3.04630715]
[1645860427812,15.89,91.48,91.402,3.04630715]
[1645860428113,0.46350237,91.479,91.402,3.04630715]
[1645860428313,0.46350237,91.479,91.403,19.14442828]
[1645860428513,0.46350237,91.479,91.404,3.04439021]
[1645860429618,0.46350237,91.479,91.405,19.14442828]
[1645860429917,0.46350237,91.479,91.406,2.97183455]
[1645860430518,0.46350237,91.479,91.407,19.14442828]
[1645860430716,0.46350237,91.479,91.401,58.17366761]
[1645860430916,0.46350237,91.479,91.402,2.7709741]
[1645860431124,0.46350237,91.479,91.402,19.14442828]
[1645860431426,0.46350237,91.479,91.404,2.75822005]
[1645860431917,0.46350237,91.479,91.405,32.82855275]
[1645860432118,0.46350237,91.479,91.406,2.48150384]
[1645860432319,0.46350237,91.479,91.406,35.31005659]
[1645860432519,0.46350237,91.479,91.407,2.3774148]
[1645860432720,0.46350237,91.479,91.408,2.44744399]
[1645860432920,0.46350237,91.479,91.408,35.27599674]
[1645860433124,0.46350237,91.479,91.409,16.56909656]
[1645860433323,0.46350237,91.479,91.41,2.9259457]
[1645860433522,0.46350237,91.479,91.41,22.07037398]
[1645860433724,0.46350237,91.479,91.41,32.82855275]
[1645860433925,0.46350237,91.479,91.411,21.76352636]
[1645860434126,0.46350237,91.479,91.412,2.82038381]
[1645860434524,0.46350237,91.479,91.413,2.86292427]
[1645860434726,0.46350237,91.479,91.413,22.00735255]
[1645860434925,0.46350237,91.479,91.415,47.45029839]
[1645860435325,0.46350237,91.479,91.416,5.28112105]
[1645860435526,15.89,91.48,91.416,5.28112105]
[1645860435727,15.89,91.48,91.417,2.86292427]
[1645860435928,15.89,91.48,91.416,2.41819678]
[1645860436533,4.59243036,91.479,91.416,2.41819678]
[1645860437930,4.59243036,91.479,91.4,41.25624161]
[1645860438131,27.60833036,91.479,91.401,2.88341178]
[1645860438331,27.60833036,91.479,91.401,16.56753625]
[1645860438531,27.60833036,91.479,91.401,2.88341178]
[1645860438933,27.60833036,91.479,91.402,48.29629095]
[1645860439134,27.60833036,91.479,91.403,2.84509331]
[1645860440132,27.60833036,91.479,91.4,22.5916]
[1645860440333,27.60833036,91.479,91.398,2.86292427]
[1645860440334,174.53,91.476,91.377,4.374]
[1645860440535,174.53,91.476,91.375,18.66464161]
[1645860440735,174.53,91.476,91.376,2.62855664]
[1645860440736,54.65,91.473,91.376,2.62855664]
[1645860440936,7.57,91.476,91.376,2.62855664]
[1645860440937,15.89,91.46,91.376,2.62855664]
[1645860441139,15.89,91.46,91.376,16.56829578]
[1645860441338,1.07230376,91.459,91.377,84.99514662]
[1645860441536,1.07230376,91.459,91.378,2.68922521]
[1645860441740,1.07230376,91.459,91.378,16.62896435]
[1645860441938,1.07230376,91.459,91.379,13.93973914]
[1645860442139,1.07230376,91.459,91.379,16.32188316]
[1645860442340,1.07230376,91.459,91.38,3.0561951]
[1645860442542,1.07230376,91.459,91.38,21.02655736]
[1645860442742,1.07230376,91.459,91.381,37.75739341]
[1645860442942,1.07230376,91.459,91.381,34.9662965]
[1645860443144,1.07230376,91.459,91.382,34.9662965]
[1645860443443,1.07230376,91.459,91.383,16.58712322]
[1645860443652,25.11960376,91.459,91.385,2.28602105]
[1645860444054,0.68740185,91.439,91.386,13.93973914]
[1645860444256,0.68740185,91.439,91.386,36.30471635]
[1645860444453,0.68740185,91.439,91.387,24.82782009]
[1645860444655,0.68740185,91.439,91.388,2.36869541]
[1645860444855,0.68740185,91.439,91.389,2.98650294]
[1645860445355,0.68740185,91.439,91.39,39.05028781]
[1645860445556,0.68740185,91.439,91.391,58.67335977]
[1645860445754,0.68740185,91.439,91.392,2.93177518]
[1645860445956,0.68740185,91.439,91.392,39.23649153]
[1645860446156,0.68740185,91.439,91.393,16.95073242]
[1645860446356,0.68740185,91.439,91.393,39.31570963]
[1645860446557,0.68740185,91.439,91.394,39.30057395]
[1645860446760,0.68740185,91.439,91.395,2.5115224]
[1645860446956,0.68740185,91.439,91.396,135.99796215]
[1645860447155,0.68740185,91.439,91.397,6.75274308]
[1645860447356,0.68740185,91.439,91.398,0.25]
[1645860447556,0.68740185,91.439,91.399,4.375]
[1645860447757,0.68740185,91.439,91.4,0.25]
[1645860447957,0.68740185,91.439,91.401,4.375]
[1645860448156,0.68740185,91.439,91.402,0.25]
[1645860448358,0.68740185,91.439,91.403,4.375]
[1645860448558,0.68740185,91.439,91.404,0.25]
[1645860448757,0.68740185,91.439,91.404,17.58971074]
[1645860448958,0.68740185,91.439,91.405,39.693502]
[1645860449159,0.68740185,91.439,91.406,3.17549144]
[1645860449361,0.68740185,91.439,91.408,2.34525345]
[1645860449759,1.85e-06,91.439,91.409,14.72678647]
[1645860449959,1.85e-06,91.439,91.411,2.59082555]
[1645860450161,1.85e-06,91.439,91.412,0.25]
[1645860450362,1.85e-06,91.439,91.413,7.41025206]
[1645860450659,1.85e-06,91.439,91.414,3.32385134]
[1645860450858,1.85e-06,91.439,91.415,3.04203411]
[1645860451063,1.85e-06,91.439,91.416,0.25]
[1645860451460,1.85e-06,91.439,91.416,17.27411738]
[1645860451659,1.85e-06,91.439,91.416,0.25]
[1645860451863,1.85e-06,91.439,91.418,2.74088826]
[1645860452061,1.85e-06,91.439,91.419,0.25]
[1645860452462,1.85e-06,91.439,91.419,22.61497721]
[1645860452663,1.85e-06,91.439,91.42,2.71846886]
[1645860452863,1.85e-06,91.439,91.421,0.25]
[1645860453263,1.85e-06,91.439,91.421,2.70577852]
[1645860453462,1.85e-06,91.439,91.411,2.7576545]
[1645860456767,1.85e-06,91.439,91.412,0.25]
[1645860456970,1.85e-06,91.439,91.412,23.64337255]
[1645860457168,1.85e-06,91.439,91.413,2.82253535]
[1645860457367,1.85e-06,91.439,91.414,3.15808541]
[1645860457568,1.85e-06,91.439,91.414,43.69496043]
[1645860457768,1.85e-06,91.439,91.415,15.46632047]
[1645860457968,1.85e-06,91.439,91.416,2.89187646]
[1645860458168,1.85e-06,91.439,91.416,25.32055455]
[1645860458368,1.85e-06,91.439,91.417,15.46632047]
[1645860458568,1.85e-06,91.439,91.418,2.50123359]
[1645860458769,1.85e-06,91.439,91.418,25.32055455]
[1645860458969,1.85e-06,91.439,91.419,51.55938629]
[1645860459176,1.85e-06,91.439,91.42,2.53569279]
[1645860460373,1.85e-06,91.439,91.421,25.07055455]
[1645860460572,1.85e-06,91.439,91.422,2.52881271]
[1645860461574,1.85e-06,91.439,91.422,27.59936726]
[1645860461773,1.85e-06,91.439,91.423,2.76822144]
[1645860462176,1.85e-06,91.439,91.424,25.07055455]
[1645860462378,1.85e-06,91.439,91.425,3.11867752]
[1645860462776,1.85e-06,91.439,91.426,2.86292427]
[1645860463880,1.85e-06,91.439,91.427,25.07055455]
[1645860464075,1.85e-06,91.439,91.426,2.86292427]
[1645860464275,1.85e-06,91.439,91.428,2.86292427]
[1645860466575,1.85e-06,91.439,91.428,27.93347882]
[1645860466976,1.85e-06,91.439,91.429,2.86292427]
[1645860467378,1.85e-06,91.439,91.43,23.477]
[1645860467776,1.85e-06,91.439,91.43,26.33992427]
[1645860467978,1.85e-06,91.439,91.431,2.7292313]
[1645860468378,1.85e-06,91.439,91.432,2.86292427]
[1645860470884,1.85e-06,91.439,91.43,23.477]
[1645860471281,1.85e-06,91.439,91.431,25.74313121]
[1645860472284,1.85e-06,91.439,91.432,5.93688247]
[1645860472485,1.85e-06,91.439,91.433,0.25]
[1645860472683,1.85e-06,91.439,91.433,45.98983541]
[1645860472883,1.85e-06,91.439,91.434,28.56603838]
[1645860473083,1.85e-06,91.439,91.435,2.70451014]
[1645860473286,1.85e-06,91.439,91.435,45.608647]
[1645860473482,1.85e-06,91.439,91.436,45.60811348]
[1645860473685,1.85e-06,91.439,91.437,3.26493988]
[1645860473884,1.85e-06,91.439,91.437,46.16907674]
[1645860474083,1.85e-06,91.439,91.438,45.47348557]
[1645860474284,1.85e-06,91.439,91.438,45.72348557]
[1645860482291,1.85e-06,91.439,91.438,31.15944872]
[1645860482692,1.85e-06,91.439,91.438,30.90944872]
[1645860482893,1.85e-06,91.439,91.438,2.86292427]
[1645860483095,1.85e-06,91.439,91.431,24.7085]
[1645860485892,1.85e-06,91.439,91.432,27.94851878]
[1645860486295,1.85e-06,91.439,91.433,27.94851878]
[1645860486794,1.85e-06,91.439,91.434,27.94851878]
[1645860487195,1.85e-06,91.439,91.435,2.86292427]
[1645860487400,1.85e-06,91.439,91.435,27.94851878]
[1645860487801,1.85e-06,91.439,91.436,2.86292427]
[1645860488401,1.85e-06,91.439,91.437,15.54659418]
[1645860488601,1.85e-06,91.439,91.437,42.17399735]
[1645860488803,1.85e-06,91.439,91.438,2.86292427]
[1645860489004,1.85e-06,91.439,91.438,46.44116299]
[1645860490906,1.85e-06,91.439,91.438,49.35995753]
[1645860491107,24.4686,91.519,91.44,0.01999815]
[1645860491305,24.4686,91.519,91.45,16.3972]
[1645860491507,24.4686,91.519,91.452,2.33346268]
[1645860491708,24.4686,91.519,91.453,0.25]
[1645860491909,24.4686,91.519,91.454,3.0469436]
[1645860492108,24.4686,91.519,91.455,0.25]
[1645860492323,24.4686,91.519,91.455,46.68206299]
[1645860492622,24.4686,91.519,91.456,46.27701632]
[1645860492822,24.4686,91.519,91.457,0.25]
[1645860493025,24.4686,91.519,91.457,43.53389632]
[1645860493226,24.4686,91.519,91.458,2.86292427]
[1645860493422,24.4686,91.519,91.458,43.28389632]
[1645860493622,0.76549585,91.518,91.459,40.01649872]
[1645860493824,0.76549585,91.518,91.425,22.54183296]
[1645860494023,15.89,91.51,91.41,16.4044]
[1645860494227,65.53,91.509,91.374,16.33]
[1645860494425,109.0,91.506,91.328,16.453]
[1645860494626,174.53,91.489,91.386,22.85356934]
[1645860494824,65.53,91.469,91.343,11.4242007]
[1645860495023,16.4202,91.44,91.338,113.0]
[1645860495224,15.89,91.43,91.338,113.0]
[1645860495426,6.009263,91.429,91.338,113.0]
[1645860495625,6.009263,91.429,91.323,2.71836251]
[1645860495626,65.53,91.426,91.307,2.55521585]
[1645860495826,65.53,91.419,91.297,2.892032]
[1645860496025,174.53,91.409,91.301,2.86292427]
[1645860496227,1.41014024,91.398,91.296,113.0]
[1645860496427,4.378,91.397,91.296,113.0]
[1645860496827,65.53,91.389,91.3,44.3129096]
[1645860497028,15.89,91.38,91.3,44.3129096]
[1645860497227,6.24295082,91.379,91.3,44.3129096]
[1645860497429,16.4325,91.37,91.296,113.0]
[1645860497626,15.89,91.36,91.296,113.0]
[1645860497830,1.58611672,91.349,91.253,2.67294882]
[1645860498026,15.89,91.34,91.253,2.67294882]
[1645860499528,15.89,91.34,91.298,49.53030497]
[1645860499829,1.8346169,91.349,91.298,49.53030497]
[1645860500029,15.89,91.34,91.298,49.53030497]
[1645860502632,15.89,91.34,91.267,2.86292427]
[1645860502831,15.89,91.34,91.253,2.57733332]
[1645860503033,1.81577759,91.339,91.253,2.86292427]
[1645860503232,1.81577759,91.339,91.254,2.86292427]
[1645860503634,1.81577759,91.339,91.255,45.10876632]
[1645860503832,4.381,91.338,91.255,45.10876632]
[1645860504033,0.69066673,91.331,91.255,45.10876632]
[1645860504233,15.89,91.32,91.255,45.10876632]
[1645860504434,1.85639727,91.319,91.255,45.10876632]
[1645860506037,15.89,91.32,91.255,45.10876632]
[1645860506237,0.69066673,91.331,91.256,5.52256279]
[1645860506638,0.69066673,91.331,91.257,2.86292427]
[1645860506835,0.69066673,91.331,91.258,2.87070918]
[1645860507035,0.69066673,91.331,91.258,17.58884925]
[1645860507235,0.69066673,91.331,91.259,5.17791235]
[1645860507433,0.69066673,91.331,91.26,19.4694224]
[1645860507634,0.69066673,91.331,91.261,2.79044758]
[1645860507834,0.69066673,91.331,91.262,0.25]
[1645860508234,0.69066673,91.331,91.262,3.11292427]
[1645860508434,0.69066673,91.331,91.263,2.86292427]
[1645860508837,0.69066673,91.331,91.261,2.79044758]
[1645860509037,0.69066673,91.331,91.256,2.9635954]
[1645860509437,15.89,91.33,91.256,2.9635954]
[1645860511340,1.41735081,91.329,91.255,45.10876632]
[1645860511740,15.89,91.33,91.255,47.684723]
[1645860513649,15.89,91.33,91.256,2.65273914]
[1645860514142,0.69066673,91.27,91.256,2.65273914]
[1645860514341,1.68078862,91.339,91.256,2.65273914]
[1645860514944,32.3278,91.34,91.256,2.65273914]
[1645860516547,1.57244625,91.339,91.255,45.10876632]
[1645860516944,1.57244625,91.339,91.256,2.37081068]
[1645860517543,32.3278,91.34,91.256,2.37081068]
[1645860518647,67.0589559,91.339,91.255,45.10876632]
[1645860518846,32.3278,91.34,91.229,2.86292427]
[1645860518847,65.53,91.329,91.229,2.86292427]
[1645860519049,65.53,91.319,91.191,23.926]
[1645860519245,15.89,91.32,91.191,23.926]
[1645860519246,65.53,91.317,91.22,113.0]
[1645860519448,47.5382,91.318,91.221,2.63048688]
[1645860519645,47.5382,91.318,91.221,19.24960779]
[1645860519848,47.5382,91.318,91.222,2.86292427]
[1645860520044,47.5382,91.318,91.223,44.98829593]
[1645860520244,47.5382,91.318,91.224,2.26233456]
[1645860520446,47.5382,91.318,91.224,5.12525883]
[1645860520646,47.5382,91.318,91.225,0.25]
[1645860520847,47.5382,91.318,91.225,3.11292427]
[1645860521046,47.5382,91.318,91.231,2.41799526]
[1645860521446,47.5382,91.318,91.232,2.86292427]
[1645860521652,16.4392,91.33,91.232,2.86292427]
[1645860521845,47.6592,91.348,91.233,0.25]
[1645860522047,47.6592,91.348,91.234,2.95496109]
[1645860522247,47.6592,91.348,91.235,0.25]
[1645860522448,47.6592,91.348,91.235,22.35768909]
[1645860522745,47.6592,91.348,91.236,19.48204518]
[1645860522947,47.6592,91.348,91.237,59.379884]
[1645860523146,47.6592,91.348,91.238,2.80269292]
[1645860523347,47.6592,91.348,91.238,5.66561719]
[1645860523548,47.6592,91.348,91.238,19.48204518]
[1645860523748,47.6592,91.348,91.239,19.48204518]
[1645860523948,47.6592,91.348,91.24,2.84639878]
[1645860524150,47.6592,91.348,91.24,5.70932305]
[1645860524348,47.6592,91.348,91.241,19.48204518]
[1645860524547,47.6592,91.348,91.242,2.7529135]
[1645860524747,47.6592,91.348,91.242,22.23495868]
[1645860524948,47.6592,91.348,91.243,19.12268149]
[1645860525148,47.6592,91.348,91.244,2.45816109]
[1645860525348,47.6592,91.348,91.245,0.25]
[1645860525550,47.6592,91.348,91.245,5.87065702]
[1645860525748,47.6592,91.348,91.246,2.78852148]
[1645860525950,47.6592,91.348,91.247,0.25]
[1645860526150,47.6592,91.348,91.247,5.94257616]
[1645860526350,47.6592,91.348,91.248,2.86292427]
[1645860527558,47.6592,91.348,91.25,2.84746832]
[1645860527758,47.6592,91.348,91.251,54.82580894]
[1645860528059,47.6592,91.348,91.252,2.74742014]
[1645860528259,47.6592,91.348,91.252,5.61034441]
[1645860528458,47.6592,91.348,91.253,2.86292427]
[1645860530163,47.6592,91.348,91.262,113.0]
[1645860530364,47.6592,91.348,91.264,2.7162612]
[1645860530564,54.7737,91.39,91.266,109.0]
[1645860530764,54.7737,91.39,91.268,2.44041361]
[1645860530765,47.5014,91.389,91.268,2.44041361]
[1645860530964,4.38,91.388,91.27,16.4295]
[1645860531165,4.38,91.388,91.271,3.24528794]
[1645860531368,47.5014,91.389,91.272,4.38]
[1645860531671,47.5014,91.389,91.273,0.25]
[1645860531866,47.5014,91.389,91.274,4.38]
[1645860532065,47.5014,91.389,91.275,0.25]
[1645860532264,47.5014,91.389,91.276,4.378]
[1645860532467,47.5014,91.389,91.277,0.25]
[1645860532870,47.5014,91.389,91.277,3.11292427]
[1645860533069,47.5014,91.389,91.279,44.45425693]
[1645860533267,24.2408,91.374,91.28,24.4772]
[1645860533467,24.2408,91.374,91.281,2.38653395]
[1645860533682,24.2408,91.374,91.281,5.24945822]
[1645860534081,24.2408,91.374,91.282,2.86292427]
[1645860534684,65.53,91.373,91.282,2.86292427]
[1645860535084,15.89,91.37,91.282,2.86292427]
[1645860550302,15.89,91.37,91.281,2.38653395]
[1645860551707,15.89,91.37,91.282,2.86292427]
[1645860551903,24.2408,91.374,91.282,2.86292427]
[1645860552328,24.2408,91.374,91.282,37.19244647]
[1645860552504,24.2408,91.374,91.283,111.58525642]
[1645860552703,16.4274,91.4,91.285,109.0]
[1645860552903,65.53,91.416,91.3,16.4241]
[1645860553204,65.53,91.414,91.302,3.05370804]
[1645860553403,65.53,91.414,91.303,0.25]
[1645860553606,23.283,91.415,91.303,21.36903624]
[1645860553813,22.9546,91.414,91.304,132.0031]
[1645860554006,22.9546,91.414,91.32,16.4206]
[1645860554207,24.1154,91.436,91.322,109.0]
[1645860554403,24.1154,91.436,91.323,3.33529986]
[1645860554604,24.1154,91.436,91.324,109.0]
[1645860554806,24.1154,91.436,91.325,2.50755745]
[1645860555006,24.1154,91.436,91.326,109.0]
[1645860555204,24.1154,91.436,91.327,3.13352916]
[1645860555405,24.1154,91.436,91.327,5.99645343]